Cogmind - Beta 14 @@@ ROGUE MODE // 2024.08.09 @ 13:09:55 Player: Sionnis Result: Destroyed by Autobeam Turret with Autobeam Performance ------------- Evolutions (0) 0 Regions Visited (2) 400 Robots Destroyed (32) 160 Value Destroyed (728) 728 Prototype IDs (0) 0 Alien Tech Used (0) 0 Bonus (0) 0 TOTAL SCORE: 1288 Bonus ------- None Cogmind --------- Core Integrity 0/250 Matter 274/300 Energy 23/200 System Corruption 0% Temperature Cool (60) Movement Treading (240) Ox1 Location -10/Subcaves Parts ------- > --- POWER (1) -------- Subdweller Power Source > --- PROPULSION (2) --- Light Treads Light Treads > --- UTILITY (2) ------ High-capacity Storage Unit Hardened Light Armor Plating > --- WEAPON (2) ------- Subdweller Laser Subdweller Laser > --- INVENTORY (20) --- Light Treads Subdweller Monowheel Flight Unit Flight Unit Flight Unit Medium Storage Unit Signal Interpreter ECM Suite Hardened Light Armor Plating Scrap Shield Hacking Suite Hacking Suite Mini Grenade Launcher Subdweller Shrapnel Launcher Datajack Hammer Peak State ------------ > --- POWER ------------ Subdweller Power Source > --- PROPULSION ------- Light Treads Spiked Treads > --- UTILITY ---------- High-capacity Storage Unit Hardened Light Armor Plating > --- WEAPON ----------- Subdweller Machine Gun Makeshift Shrapnel Gun > --- INVENTORY -------- Light Treads Light Treads Light Treads Subdweller Monowheel Flight Unit Flight Unit Flight Unit Medium Storage Unit Signal Interpreter ECM Suite Hardened Light Armor Plating Hardened Light Armor Plating Hardened Light Armor Plating Hacking Suite Hacking Suite Light Cannon Mini Grenade Launcher Subdweller Shrapnel Launcher Datajack Hammer [Rating: 17] Favorites ----------- Power Subdweller Power Source Engine Subdweller Power Source Propulsion Light Treads Treads Light Treads Utility Hardened Light Armor Plating Storage High-capacity Storage Unit Protection Hardened Light Armor Plating Weapon Subdweller Laser Energy Gun Subdweller Laser Ballistic Gun Makeshift Shrapnel Gun Ballistic Cannon Light Cannon Impact Weapon Hammer Build | -11 -10 -10 ------- Run | Yrd Mat Sub Slots Evolved . | . . . Power . | . . . Propulsion . | . . . Utility . | . . . Weapon . | . . . Parts Attached 38 | 6 13 19 Power 5 | 1 1 3 Engine 5 | 1 1 3 Core . | . . . Reactor . | . . . Propulsion 8 | 2 3 3 Treads 8 | 2 3 3 Leg . | . . . Wheel . | . . . Hover . | . . . Flight . | . . . Utility 9 | 1 6 2 Device . | . . . Storage 4 | 1 3 . Processor . | . . . Hackware . | . . . Protection 5 | . 3 2 Artifact . | . . . Weapon 16 | 2 3 11 Energy Gun 7 | 1 1 5 Energy Cannon . | . . . Ballistic Gun 5 | 1 1 3 Ballistic Cannon 2 | . 1 1 Launcher . | . . . Special Weapon . | . . . Impact Weapon 2 | . . 2 Slashing Weapon . | . . . Piercing Weapon . | . . . Special Melee Weapon . | . . . Unidentified Prototypes . | . . . Parts Lost 4 | . . 4 Power . | . . . Propulsion 1 | . . 1 Utility 1 | . . 1 Weapon 2 | . . 2 Highest Loss Streak 3 | . . 3 To Critical Strikes 1 | . . 1 Average Slot Usage (%) 98 | . 95 99 Engine 14 | . 14 14 Treads 27 | . 27 28 Storage 14 | . 14 14 Protection 12 | . 9 14 Energy Gun 8 | . 4 11 Ballistic Gun 13 | . 14 12 Ballistic Cannon 5 | . 9 3 Peak Build Rating 17 | 6 10 17 Average Rating 13 | 4 8 15 On Entrance 5 | . 6 10 Naked Turns . | . . . Heaviest Build 58 | 14 55 58 Greatest Support 40 | 40 40 40 Greatest Overweight (x) 1 | . 1 1 Average Overweight (x) . | . . 1 Largest Inventory Capacity 20 | 8 20 20 Average Capacity 19 | 6 17 20 Most Carried 20 | 3 20 20 Average Carried 17 | 1 13 19 Final Capacity 20 | 8 20 20 Final Carried 20 | 3 20 17 Class Distribution -------------------- 100% | Mutant Dominant Class ---------------- Mutant | -10/Materials Mutant | -10/Subcaves Resources | -11 -10 -10 ----------- Run | Yrd Mat Sub Matter Collected 955 | 260 391 304 Remotely . | . . . Salvage Created 893 | . 569 324 Parts 61 | . 40 21 Haulers Intercepted 2 | . 2 . Recyclers Shooed 1 | . 1 . Parts Field Recycled . | . . . Retrieved Matter . | . . . Parts Self-Destructed 7 | . . 7 Prevented . | . . . Kills | -11 -10 -10 ------- Run | Yrd Mat Sub Combat Hostiles Destroyed 22 | . 12 10 Guns 20 | . 10 10 Cannons 2 | . 2 . Classes Destroyed 7 | . 6 1 Worker 1 | . 1 . Hauler 2 | . 2 . Operator 4 | . 4 . Watcher 3 | . 3 . Swarmer 8 | . 5 3 Grunt 7 | . 7 . Subdweller 7 | . . 7 Best Kill Streak 4 | . 4 4 Combat Bots Only 4 | . 2 4 Max Kills in Single Turn 1 | . 1 1 Gunslinging . | . . . Exploded . | . . . Melee . | . . . Uniques/NPCs Destroyed . | . . . Combat | -11 -10 -10 -------- Run | Yrd Mat Sub Hostile Shots Fired 182 | . 55 127 Missed 57 | . 19 38 Damage Taken 1732 | . 406 1326 Core 256 | . 78 178 Absorbed by Shields . | . . . Core Remaining (%) 100 | 100 . . Volleys Fired 120 | . 59 61 Largest 2 | . 2 2 Hottest 120 | . 70 120 Shots Fired 209 | . 118 91 Gun 179 | . 97 82 Cannon 30 | . 21 9 Launcher . | . . . Special . | . . . Kinetic 121 | . 80 41 Thermal 84 | . 34 50 Explosive . | . . . Electromagnetic 4 | . 4 . Robot Hit Streak 8 | . 7 8 Robot Miss Streak 12 | . 3 12 Penetration Max . | . . . Secondary Targets 5 | . 3 2 Max Gunslinging Chain 1 | . 1 1 Shots Hit Robots 117 | . 74 43 Core Hits 56 | . 32 24 Critical Kills . | . . . Critical Parts Destroyed . | . . . Critical Strikes 5 | . 5 . Burn 4 | . 4 . Blast 1 | . 1 . Melee Attacks 3 | . . 3 Impact 3 | . . 3 Slashing . | . . . Piercing . | . . . Sneak Attacks . | . . . Combat Hostiles . | . . . Follow-up Attacks . | . . . Damage Inflicted 1850 | . 1044 806 Guns 1572 | . 781 791 Cannons 278 | . 263 15 Explosions . | . . . Melee . | . . . Ramming . | . . . Kinetic 1053 | . 704 349 Thermal 767 | . 310 457 Explosive . | . . . Electromagnetic 30 | . 30 . Impact . | . . . Slashing . | . . . Piercing . | . . . Highest Corruption . | . . . Average Corruption . | . . . Corruption Purged . | . . . Corruption Blocked . | . . . Overload Shots . | . . . Overflow Damage . | . . . Projectiles . | . . . Explosions . | . . . Melee . | . . . Knockbacks 4 | . 4 . Impact . | . . . Kinetic 4 | . 4 . Secondary . | . . . Self-Inflicted Damage . | . . . Shots . | . . . Rammed . | . . . Targets Rammed . | . . . Kicked . | . . . Crushed . | . . . Highest Temperature 39 | . 39 30 Average Temperature 9 | . 9 11 Received Heat Transfer 444 | . 180 264 Siege Activations . | . . . Robots Corrupted . | . . . Combat Hostiles . | . . . Parts Fried . | . . . Impact Corruptions . | . . . Robots Melted . | . . . Combat Hostiles . | . . . Parts Melted 3 | . 2 1 Heat Transferred 1796 | . 1221 575 Parts Sabotaged . | . . . Parts Stolen . | . . . Parts Stripped . | . . . Power Chain Reactions . | . . . Alert | -11 -10 -10 ------- Run | Yrd Mat Sub Peak Influence 238 | . 238 . Initial . | . . . Average 75 | . 78 . Maximum Alert Level 1 | . 1 . Low Security (%) 95 | 100 95 . Level 1 4 | . 4 . Level 2 . | . . . Level 3 . | . . . Level 4 . | . . . Level 5 . | . . . High Security . | . . . Max Security . | . . . Squads Dispatched 3 | . 3 . Investigation 1 | . 1 . Extermination . | . . . Reinforcement 2 | . 2 . Assault . | . . . Garrison . | . . . Intercept . | . . . Searches Triggered . | . . . Construction Impeded . | . . . Haulers Reinforced . | . . . Active Scanning Responses . | . . . Cargo Convoy Interrupts . | . . . Stealth | -11 -10 -10 --------- Run | Yrd Mat Sub Distress Signals 2 | . 2 . Communications Jammed . | . . . Distress Signals . | . . . Times Spotted 36 | . 21 15 Peak Tracking Total 6 | . 3 6 Tactical Retreats 3 | . 2 1 Traps | -11 -10 -10 ------- Run | Yrd Mat Sub Traps Triggered 4 | . 1 3 Indirectly . | . . . Trap Hack Attempts . | . . . Triggered . | . . . Disarmed . | . . . Reprogrammed . | . . . Reused . | . . . Traps Extracted . | . . . Installed . | . . . Triggered . | . . . Machines | -11 -10 -10 ---------- Run | Yrd Mat Sub Machines Disabled . | . . . Max in Single Turn . | . . . Machines Repaired . | . . . Machines Dismantled . | . . . Machines Sabotaged . | . . . Overloaded Fab Kills . | . . . Hacking | -11 -10 -10 --------- Run | Yrd Mat Sub Machines Accessed 8 | . 7 1 Terminals 5 | . 5 . Fabricators . | . . . Repair Stations . | . . . Recycling Units 2 | . 2 . Scanalyzers . | . . . Garrison Access . | . . . Total Hacks 19 | . 15 4 Successful 11 | . 7 4 Failed 8 | . 8 . Catastrophic . | . . . Database Lockouts . | . . . Manual 10 | . 10 . Terminals 12 | . 12 . Fabricators . | . . . Repair Stations . | . . . Recycling Units 3 | . 3 . Scanalyzers . | . . . Garrison Access . | . . . Terminal Hacks 5 | . 1 4 Record 4 | . . 4 Hauler Manifests 1 | . 1 . Fabricator Hacks . | . . . Repair Station Hacks . | . . . Recycling Unit Hacks 1 | . 1 . Retrieve Components 1 | . 1 . Scanalyzer . | . . . Garrison Access Hacks . | . . . Unauthorized Hacks 5 | . 5 . Terminals 5 | . 5 . Botnet 2 | . 2 . Skim 3 | . 3 . Fabricators . | . . . Repair Stations . | . . . Recycling Units . | . . . Scanalyzers . | . . . Garrison Access . | . . . Data Cores Recovered 2 | . 2 . Used . | . . . Hacking Detections 6 | . 6 . Full Trace Events 1 | . 1 . Feedback Events . | . . . Feedback Blocked . | . . . Robot Schematics Acquired . | . . . Robots Built . | . . . Authchips . | . . . Time . | . . . Total Robot Build Rating . | . . . Part Schematics Acquired . | . . . Parts Built . | . . . Authchips . | . . . Time . | . . . Total Part Build Rating . | . . . Parts Repaired . | . . . Time . | . . . Parts Recycled . | . . . Recycled Matter . | . . . Retrieved Matter . | . . . Retrieved Components 1 | . 1 . Parts Scanalyzed . | . . . Part Schematics Acquired . | . . . Parts Damaged . | . . . Bothacking | -11 -10 -10 ------------ Run | Yrd Mat Sub Used RIF Installer . | . . . Robots Hacked . | . . . Non-combat . | . . . Combat . | . . . Robot Hacks Applied . | . . . Relay Couplers Released . | . . . Fabnet Peak Effective % . | . . . Robots Rewired . | . . . Allies Hacked . | . . . Hacks Repelled . | . . . Allies | -11 -10 -10 -------- Run | Yrd Mat Sub Total Allies . | . . . Largest Group . | . . . Highest-Rated Group . | . . . Highest-Rated Ally . | . . . Total Orders . | . . . Ally Attacks . | . . . Total Damage . | . . . Kills . | . . . Allies Corrupted . | . . . Allies Melted . | . . . Intel | -11 -10 -10 ------- Run | Yrd Mat Sub Robot Analysis Total . | . . . Derelict Logs Recovered . | . . . Drone Launches . | . . . Drone Recoveries . | . . . Exploration | -11 -10 -10 ------------- Run | Yrd Mat Sub Turns Passed 5322 | 65 1651 3606 Spaces Moved 2066 | 37 667 1362 Core 5 | 5 . . Treads 2061 | 32 667 1362 Legs . | . . . Wheels . | . . . Hover . | . . . Flight . | . . . Fastest Speed 50 | 50 160 240 Average Speed 233 | 145 208 248 Slowest Speed 250 | 160 240 250 Overloaded Moves . | . . . Propulsion Burnouts . | . . . Robots Hopped . | . . . Cave-ins Triggered . | . . . Exploration Rate (%) 55 | 5 97 63 Regions Visited 2 Branch Regions 1 Pre-discovered Areas 1 | . . 1 Known Exits Taken . | . . . Unknown Exits Taken 2 | 1 1 . Scrap Searched 12 | . . 12 Spaces Dug . | . . . Terrain Destroyed . | . . . Melee . | . . . Projectile . | . . . AOE . | . . . Terrain Rammed . | . . . Walls Destroyed . | . . . Machines Disabled . | . . . Actions | -11 -10 -10 --------- Run | Yrd Mat Sub Total 2337 | 45 809 1483 Wait 50 | . 38 12 Move 2064 | 36 666 1362 Hop . | . . . Pick Up 31 | 3 20 8 Fast Attach 18 | 6 8 4 Attach 6 | . . 6 Detach 2 | . 1 1 Swap 14 | . 5 9 Drop 29 | . 12 17 Fire 120 | . 59 61 Melee 3 | . . 3 Ram . | . . . Kick . | . . . Crush . | . . . Escape Stasis . | . . . Rewire . | . . . Trap . | . . . Miscellaneous . | . . . Route ------- -11/Scrapyard -10/Materials (discovered 5 exits: [*Mat x3] / [*Min] / *Sub) -10/Subcaves (discovered 1 exit: [*Mat]) History --------- Turn | Location | Event 21 | -11/Scrapyard | Discovered new exit (range 15) 66 | -11/Scrapyard | Entered Materials 313 | -10/Materials | Discovered new exit (range 5) 314 | -10/Materials | Build established: Mutant 1007 | -10/Materials | Discovered new exit (range 5) 1104 | -10/Materials | Discovered new exit (range 16) 1642 | -10/Materials | Discovered new exit (range 11) 1669 | -10/Materials | Discovered new exit (range 5) 1717 | -10/Materials | Entered Subcaves 2012 | -10/Subcaves | Visited Clippyterm 2019 | -10/Subcaves | Learned Factory fabricator intel 2047 | -10/Subcaves | Shifting Twisted Machinery released Sub. Machine Gun 2051 | -10/Subcaves | Shifting Twisted Machinery released Sub. Shrapnel Launcher 2167 | -10/Subcaves | Shifting Twisted Machinery released Spk. Treads 2351 | -10/Subcaves | Learned location of Zion (-7) 2351 | -10/Subcaves | Met a Zionite searching for "candidates" 2435 | -10/Subcaves | Discovered new exit (range 6) 2707 | -10/Subcaves | Shifting Twisted Machinery released Sub. Laser 5175 | -10/Subcaves | Disturbed a concealed Subdweller 5287 | -10/Subcaves | A Subdweller sparked back to life 5287 | -10/Subcaves | A Subdweller sparked back to life 5293 | -10/Subcaves | Core integrity fell below 50% 5306 | -10/Subcaves | Core integrity fell below 20% 5323 | -10/Subcaves | Destroyed by Autobeam Turret with Autobeam Last Messages --------------- S-10 Pest destroyed. Flight Unit fries itself beyond repair. 66-OLN(R) creaks and sparks as it begins to move. VX-HE8(R) creaks and sparks as it begins to move. Flight Unit fries itself beyond repair. Subatomizers dissect the Lgt. Assault Rifle. S-10 Pest destroyed. Switching to secondary target: 66-OLN(R). Lgt. Assault Rifle fries itself beyond repair. Hrd. Light Armor Plating destroyed. 66-OLN(R) destroyed. Switching to secondary target: QL-A7H(R). Lgt. Ion Engine fries itself beyond repair. Mak. Shrapnel Gun destroyed. Flight Unit fries itself beyond repair. Lgt. Assault Rifle fries itself beyond repair. Acquired 24 matter. Spk. Treads destroyed. Map ----- +----------------------------------------------------+ | ?????????????????????????????????????????????????? | | ?????????????????????????????????????????????????? | | ?????????????????????????????????????????????????? | | ?????????????????????????????????????????????????? | | ?????????????????????????????????????????????????? | | ?????????????????????????????????????????????????? | | ?????????????????????????????????????????????????? | | ?????????????????????????????????????????????????? | | ?????????????????????????????????????????????????? | | ?????????????????????????????????????????????????? | | ?????????????????????????? ??????????????????????? | | ?????????????????????????" " ???????????????????? | | ?????????????????????????t t ????????????????????? | | ????????????????????????? ?????????????????#### | | ????????????????????????? ??????????????#### | | ????????????????????????? ?????????????? | | ????????????????????????? #?????????????? | | ????????????????????????# #??????????????? | | ????????????????????????# #????????????????????? | | ????????????????????????# #????????????????????? | | ????????????????????????# #????????????????????? | | ????????????????????????# #????????????????????? | | ????????????????????????# #????????????????????? | | ????????????????????????# #????????????????????? | | ????????????????????????# #?######?????????????# | | ????????? ???#???###@ ###| %"##???????????## | | ??????? ## ### s % ###"%=&#??????????## | | ????????? " $= R #####*#??????????# | | ????????? " # [%& R ##!&%"#?????????## | | ???????????"" " ## ##&###?????????# | | ?????????? ???### ## ="####???????# | | ?????????? "????????##### ##????### | | ?????????????????????????# ##??## | | ?????????????????????????## ### #??# | | ??????????????????????????### #?# ##?# | | ????????????????????????????# #?# #?## | | ????????????????????????????# #?## #### ### | | ????????????????????????????# ### ## ### | | ????????????????????????????# ### #? | | ????????????????????????????## ### ### ####? | | ?????????????????????????????###?# ##?### ##???? | | ?????????????????????????????????#####????###????? | | ?????????????????????????????????????????????????? | | ?????????????????????????????????????????????????? | | ?????????????????????????????????????????????????? | | ?????????????????????????????????????????????????? | | ?????????????????????????????????????????????????? | | ?????????????????????????????????????????????????? | | ?????????????????????????????????????????????????? | | ?????????????????????????????????????????????????? | +----------------------------------------------------+ Best States ------------- Heat Dissipation 25 Energy Generation 5 Energy Capacity 250 Matter Stores 300 Matter Capacity 300 Sight Range 16 Terrain Scan Density 10 Armor Coverage 150 Weapon Shielding 33 Evasion (%) 40 Recoil Reduction 2 Item Schematics ----------------- None Robot Schematics ------------------ None Fabricated ------------ Nothing Alien Tech Used ----------------- None Achievements -------------- None Challenges ------------ None Game ------ Seed CarbideCompactSubcomponent Manual? 0 Play Time 00:24:03 Cumulative 554.6 hours Start 2024.08.09 @ 12:50:02 End 2024.08.09 @ 13:09:55 Sessions 1 Manual Loads 0 Difficulty Rogue Special Mode None Game No. 299 Rogue 299 Adventurer 0 Explorer 0 Win Type - Total 36 Types 22/2/4/3/1/1/1/1/1 Lore% 92 Gallery% 96 Achievement% 98 Wizard Run 0 Options --------- Layout 1 ASCII 0 Keyboard 0 Movement Numpad Keybinds 0 Fullscreen 1 Font 24/Smallcaps Map View 50x35 Zoom Use 0% Tactical HUD 1 Map Filters NONE Filters NONE Steam 1 RUN: 65a9b129-2cf8-4c15-b058-836aaa96c11a